[Event "Late-Titled-Tuesday-Blitz-May-14-2024"]
[Site "Chess.com"]
[Date "2024.05.14"]
[Round "3"]
[White "th3d4rkness"]
[Black "subham777"]
[Result "0-1"]
[WhiteElo "2176"]
[BlackElo "2553"]
[TimeControl "180+1"]
[EndTime "14:29:28 PDT"]
[Termination "subham777 won on time"]

1. e4 {[%clk 0:03:00.9]} 1... e6 {[%clk 0:03:00]} 2. d3 {[%clk 0:02:57.3]} 2...
c5 {[%clk 0:02:59.4]} 3. Nd2 {[%clk 0:02:57.5]} 3... Nc6 {[%clk 0:02:56.6]} 4.
g3 {[%clk 0:02:57.7]} 4... g6 {[%clk 0:02:50.3]} 5. Bg2 {[%clk 0:02:57.1]} 5...
Bg7 {[%clk 0:02:51]} 6. f4 {[%clk 0:02:55.8]} 6... Nge7 {[%clk 0:02:51.4]} 7.
Ngf3 {[%clk 0:02:55.8]} 7... O-O {[%clk 0:02:51.7]} 8. O-O {[%clk 0:02:53.1]}
8... d6 {[%clk 0:02:52.2]} 9. Kh1 {[%clk 0:02:49]} 9... f5 {[%clk 0:02:52.4]}
10. exf5 {[%clk 0:02:39.7]} 10... Nxf5 {[%clk 0:02:48.5]} 11. Re1 {[%clk
0:02:31.8]} 11... e5 {[%clk 0:02:39.9]} 12. fxe5 {[%clk 0:02:24.7]} 12... Nxe5
{[%clk 0:02:32]} 13. Nxe5 {[%clk 0:02:17.2]} 13... Bxe5 {[%clk 0:02:31]} 14. Nc4
{[%clk 0:02:13.1]} 14... Bg7 {[%clk 0:02:26.4]} 15. a4 {[%clk 0:01:51.2]} 15...
Rb8 {[%clk 0:02:05.5]} 16. Bf4 {[%clk 0:01:46.8]} 16... g5 {[%clk 0:02:00.5]}
17. Bd5+ {[%clk 0:01:34.2]} 17... Kh8 {[%clk 0:01:57.7]} 18. Bd2 {[%clk
0:01:31.8]} 18... b6 {[%clk 0:01:40.6]} 19. Qh5 {[%clk 0:01:12.6]} 19... Bf6
{[%clk 0:01:18.2]} 20. Rf1 {[%clk 0:00:42.5]} 20... Ng7 {[%clk 0:00:38.1]} 21.
Qh6 {[%clk 0:00:39.2]} 21... Nf5 {[%clk 0:00:34]} 22. Qh5 {[%clk 0:00:37.1]}
22... a6 {[%clk 0:00:24.8]} 23. Bc3 {[%clk 0:00:20.7]} 23... Bxc3 {[%clk
0:00:16.9]} 24. bxc3 {[%clk 0:00:20.6]} 24... Bb7 {[%clk 0:00:15]} 25. Bxb7
{[%clk 0:00:17.9]} 25... Rxb7 {[%clk 0:00:15.9]} 26. Rae1 {[%clk 0:00:15.2]}
26... Rbf7 {[%clk 0:00:15.2]} 27. Kg2 {[%clk 0:00:12.5]} 27... Qa8+ {[%clk
0:00:13.4]} 28. Kg1 {[%clk 0:00:08.8]} 28... b5 {[%clk 0:00:10.9]} 29. Nxd6
{[%clk 0:00:06.1]} 29... Nxd6 {[%clk 0:00:09.7]} 30. Rxf7 {[%clk 0:00:05.9]}
30... Nxf7 {[%clk 0:00:09.6]} 31. Qe2 {[%clk 0:00:03.6]} 31... Qd8 {[%clk
0:00:08.6]} 32. axb5 {[%clk 0:00:01.9]} 32... axb5 {[%clk 0:00:08.4]} 33. Qe6
{[%clk 0:00:02]} 33... Qd6 {[%clk 0:00:05.7]} 34. Qf5 {[%clk 0:00:00.5]} 34...
Qg6 {[%clk 0:00:02.9]} 0-1

[Event "Late-Titled-Tuesday-Blitz-May-14-2024"]
[Site "Chess.com"]
[Date "2024.05.14"]
[Round "3"]
[White "mfschulz"]
[Black "WindWhistler11"]
[Result "0-1"]
[WhiteElo "2300"]
[BlackElo "2515"]
[TimeControl "180+1"]
[EndTime "14:29:28 PDT"]
[Termination "WindWhistler11 won on time"]

1. d4 {[%clk 0:03:00.9]} 1... Nf6 {[%clk 0:02:57]} 2. Bg5 {[%clk 0:02:59.8]}
2... Ne4 {[%clk 0:02:54.8]} 3. Bf4 {[%clk 0:02:59.3]} 3... c5 {[%clk 0:02:55.5]}
4. f3 {[%clk 0:02:59.1]} 4... Nf6 {[%clk 0:02:55.6]} 5. d5 {[%clk 0:02:58]} 5...
d6 {[%clk 0:02:44.5]} 6. e4 {[%clk 0:02:57.7]} 6... g6 {[%clk 0:02:44.7]} 7. c4
{[%clk 0:02:57.3]} 7... Bg7 {[%clk 0:02:45]} 8. Nc3 {[%clk 0:02:57.5]} 8... Na6
{[%clk 0:02:42.8]} 9. Qd2 {[%clk 0:02:57.3]} 9... h5 {[%clk 0:02:40.2]} 10. h4
{[%clk 0:02:54.1]} 10... Nc7 {[%clk 0:02:39.3]} 11. a4 {[%clk 0:02:53]} 11...
Nd7 {[%clk 0:02:34.6]} 12. Nh3 {[%clk 0:02:51.5]} 12... Rb8 {[%clk 0:02:32.9]}
13. Bd3 {[%clk 0:02:44]} 13... a6 {[%clk 0:02:31.8]} 14. O-O {[%clk 0:02:42.2]}
14... Ne5 {[%clk 0:02:26.2]} 15. Ng5 {[%clk 0:02:30]} 15... f6 {[%clk
0:02:18.1]} 16. Bxe5 {[%clk 0:02:25.1]} 16... dxe5 {[%clk 0:02:14.7]} 17. Nh3
{[%clk 0:02:16.5]} 17... Bh6 {[%clk 0:02:05.6]} 18. Qf2 {[%clk 0:02:13.6]} 18...
Bxh3 {[%clk 0:02:05.2]} 19. gxh3 {[%clk 0:02:13]} 19... Qd7 {[%clk 0:01:59.6]}
20. Kg2 {[%clk 0:02:10.1]} 20... Rg8 {[%clk 0:01:39.4]} 21. Qxc5 {[%clk
0:01:46]} 21... g5 {[%clk 0:01:38.2]} 22. hxg5 {[%clk 0:01:44.5]} 22... Bxg5
{[%clk 0:01:28.8]} 23. Kf2 {[%clk 0:01:38.7]} 23... Rc8 {[%clk 0:01:17.1]} 24.
Ke2 {[%clk 0:01:36.6]} 24... Qxh3 {[%clk 0:01:09.6]} 25. d6 {[%clk 0:01:28.4]}
25... Nb5 {[%clk 0:01:02.6]} 26. d7+ {[%clk 0:01:15.5]} 26... Qxd7 {[%clk
0:01:01.5]} 27. Qd5 {[%clk 0:01:12.3]} 27... Nd4+ {[%clk 0:00:59.5]} 28. Kd1
{[%clk 0:00:58.7]} 28... e6 {[%clk 0:00:57.2]} 29. Qxd7+ {[%clk 0:00:57.9]}
29... Kxd7 {[%clk 0:00:58.1]} 30. a5 {[%clk 0:00:40.6]} 30... Ke7 {[%clk
0:00:48.6]} 31. Na4 {[%clk 0:00:39.3]} 31... Rgd8 {[%clk 0:00:46.7]} 32. Nb6
{[%clk 0:00:38.1]} 32... Rc6 {[%clk 0:00:44.9]} 33. Ra3 {[%clk 0:00:27.4]} 33...
h4 {[%clk 0:00:29]} 34. Ke1 {[%clk 0:00:24.8]} 34... Bf4 {[%clk 0:00:27]} 35.
Kf2 {[%clk 0:00:18]} 35... Rg8 {[%clk 0:00:26]} 36. Rh1 {[%clk 0:00:15.1]} 36...
Bg3+ {[%clk 0:00:20.5]} 37. Kf1 {[%clk 0:00:14.5]} 37... Rd8 {[%clk 0:00:20]}
38. Be2 {[%clk 0:00:11.8]} 38... Nc2 {[%clk 0:00:18.9]} 39. Rb3 {[%clk 0:00:06]}
39... Rd2 {[%clk 0:00:14.4]} 0-1

[Event "Late-Titled-Tuesday-Blitz-May-14-2024"]
[Site "Chess.com"]
[Date "2024.05.14"]
[Round "3"]
[White "balack95"]
[Black "crosky"]
[Result "1-0"]
[WhiteElo "2509"]
[BlackElo "2285"]
[TimeControl "180+1"]
[EndTime "14:29:29 PDT"]
[Termination "balack95 won on time"]

1. b3 {[%clk 0:03:00.9]} 1... e5 {[%clk 0:02:59.5]} 2. Bb2 {[%clk 0:03:01.6]}
2... Nc6 {[%clk 0:03:00.4]} 3. e3 {[%clk 0:02:57.8]} 3... Nf6 {[%clk 0:03:00]}
4. Bb5 {[%clk 0:02:58.3]} 4... d5 {[%clk 0:02:58.9]} 5. Bxe5 {[%clk 0:02:54.4]}
5... Bd6 {[%clk 0:02:57]} 6. Bxd6 {[%clk 0:02:54.5]} 6... Qxd6 {[%clk
0:02:57.9]} 7. Nf3 {[%clk 0:02:53.7]} 7... O-O {[%clk 0:02:58.1]} 8. O-O {[%clk
0:02:53.4]} 8... Bg4 {[%clk 0:02:58.6]} 9. Be2 {[%clk 0:02:53.1]} 9... Ne7
{[%clk 0:02:42.6]} 10. d4 {[%clk 0:02:52.6]} 10... Ng6 {[%clk 0:02:40.7]} 11. c4
{[%clk 0:02:52.2]} 11... c6 {[%clk 0:02:40.4]} 12. Nc3 {[%clk 0:02:50.5]} 12...
h5 {[%clk 0:02:37]} 13. Rc1 {[%clk 0:02:48]} 13... h4 {[%clk 0:02:32.9]} 14. h3
{[%clk 0:02:45.3]} 14... Bf5 {[%clk 0:02:27.6]} 15. cxd5 {[%clk 0:02:42.9]}
15... cxd5 {[%clk 0:02:23.7]} 16. Bd3 {[%clk 0:02:42.4]} 16... Ne4 {[%clk
0:02:20.6]} 17. Nb5 {[%clk 0:02:31.6]} 17... Qf6 {[%clk 0:02:14]} 18. Nc7 {[%clk
0:02:27.3]} 18... Rad8 {[%clk 0:02:13.7]} 19. Bxe4 {[%clk 0:02:23.3]} 19... Bxe4
{[%clk 0:02:06.3]} 20. Nd2 {[%clk 0:02:22.7]} 20... Bd3 {[%clk 0:01:54.8]} 21.
Re1 {[%clk 0:02:20.9]} 21... Qg5 {[%clk 0:01:47.5]} 22. Nf3 {[%clk 0:02:15.5]}
22... Qf5 {[%clk 0:01:47.6]} 23. Rc3 {[%clk 0:02:01.2]} 23... Be4 {[%clk
0:01:47]} 24. Nb5 {[%clk 0:01:59]} 24... a6 {[%clk 0:01:41.6]} 25. Na3 {[%clk
0:01:58.4]} 25... Rd6 {[%clk 0:01:22.4]} 26. Nb1 {[%clk 0:01:55.4]} 26... Rf6
{[%clk 0:01:12.9]} 27. Nbd2 {[%clk 0:01:54.6]} 27... Ne7 {[%clk 0:01:06.2]} 28.
Qe2 {[%clk 0:01:50.9]} 28... g5 {[%clk 0:01:04.6]} 29. Nxe4 {[%clk 0:01:49]}
29... dxe4 {[%clk 0:01:03.4]} 30. Nh2 {[%clk 0:01:45.3]} 30... Nd5 {[%clk
0:01:02.6]} 31. Rc5 {[%clk 0:01:42.9]} 31... Qe6 {[%clk 0:01:02.2]} 32. Ng4
{[%clk 0:01:41.8]} 32... Rg6 {[%clk 0:01:02]} 33. Rec1 {[%clk 0:01:39.1]} 33...
Nb4 {[%clk 0:00:54.2]} 34. Ne5 {[%clk 0:01:28.1]} 34... Rg7 {[%clk 0:00:54]} 35.
a3 {[%clk 0:01:27.9]} 35... f6 {[%clk 0:00:38.1]} 36. Ng4 {[%clk 0:01:20.6]}
36... Nd3 {[%clk 0:00:36]} 37. Qc2 {[%clk 0:01:06.7]} 37... Nxc1 {[%clk
0:00:33.5]} 38. Qxc1 {[%clk 0:01:07.6]} 38... Qxb3 {[%clk 0:00:31.7]} 39. Nh6+
{[%clk 0:01:08.1]} 39... Kh7 {[%clk 0:00:31.8]} 40. Nf5 {[%clk 0:01:08.5]} 40...
Rd7 {[%clk 0:00:27.3]} 41. Rc3 {[%clk 0:01:06.4]} 41... Qe6 {[%clk 0:00:24]} 42.
g4 {[%clk 0:00:58.4]} 42... hxg3 {[%clk 0:00:22.5]} 43. Nxg3 {[%clk 0:00:59]}
43... Kg6 {[%clk 0:00:22.1]} 44. Qc2 {[%clk 0:00:49.7]} 44... f5 {[%clk
0:00:16.8]} 45. h4 {[%clk 0:00:48.4]} 45... gxh4 {[%clk 0:00:15.6]} 46. Ne2
{[%clk 0:00:49.1]} 46... Rg8 {[%clk 0:00:14.1]} 47. Nf4+ {[%clk 0:00:46.2]}
47... Kf7+ {[%clk 0:00:14.6]} 48. Kf1 {[%clk 0:00:45.5]} 48... Qf6 {[%clk
0:00:12.4]} 49. Qb3+ {[%clk 0:00:44.6]} 49... Kf8 {[%clk 0:00:07.2]} 50. Rc8+
{[%clk 0:00:44.3]} 50... Rd8 {[%clk 0:00:07.9]} 51. Rxd8+ {[%clk 0:00:39.9]}
51... Qxd8 {[%clk 0:00:08]} 52. Ne6+ {[%clk 0:00:40.5]} 1-0

[Event "Late-Titled-Tuesday-Blitz-May-14-2024"]
[Site "Chess.com"]
[Date "2024.05.14"]
[Round "3"]
[White "yobdc"]
[Black "GMthekingindian"]
[Result "1-0"]
[WhiteElo "2486"]
[BlackElo "2294"]
[TimeControl "180+1"]
[EndTime "14:29:31 PDT"]
[Termination "yobdc won on time"]

1. e4 {[%clk 0:03:00.9]} 1... c5 {[%clk 0:02:59.8]} 2. Nf3 {[%clk 0:03:00.6]}
2... e6 {[%clk 0:03:00.2]} 3. g3 {[%clk 0:03:00.1]} 3... Nc6 {[%clk 0:02:58.8]}
4. Bg2 {[%clk 0:03:00.3]} 4... Nf6 {[%clk 0:02:58.6]} 5. Qe2 {[%clk 0:02:59.6]}
5... d5 {[%clk 0:02:50.4]} 6. exd5 {[%clk 0:02:59.1]} 6... Nxd5 {[%clk
0:02:49.3]} 7. O-O {[%clk 0:02:59.2]} 7... Be7 {[%clk 0:02:49.3]} 8. Rd1 {[%clk
0:02:59.5]} 8... Bf6 {[%clk 0:02:42.4]} 9. Nc3 {[%clk 0:02:49.5]} 9... Nxc3
{[%clk 0:02:34.7]} 10. dxc3 {[%clk 0:02:49.3]} 10... Qb6 {[%clk 0:02:34.8]} 11.
Nd2 {[%clk 0:02:40.8]} 11... O-O {[%clk 0:02:32.4]} 12. Ne4 {[%clk 0:02:40.6]}
12... Be7 {[%clk 0:02:30.6]} 13. a4 {[%clk 0:02:33]} 13... e5 {[%clk 0:02:19.5]}
14. Be3 {[%clk 0:02:09.6]} 14... a5 {[%clk 0:01:56.6]} 15. Qb5 {[%clk
0:02:04.4]} 15... Qc7 {[%clk 0:01:34]} 16. Bxc5 {[%clk 0:02:00.2]} 16... Bg4
{[%clk 0:01:21.8]} 17. Bxe7 {[%clk 0:01:39.2]} 17... Qxe7 {[%clk 0:01:14.5]} 18.
Rd2 {[%clk 0:01:35.5]} 18... Rfd8 {[%clk 0:01:12.7]} 19. h3 {[%clk 0:01:29.3]}
19... Bf5 {[%clk 0:01:06.5]} 20. Rad1 {[%clk 0:01:23.8]} 20... h6 {[%clk
0:00:36.5]} 21. Kh2 {[%clk 0:01:22.5]} 21... Rxd2 {[%clk 0:00:36.1]} 22. Rxd2
{[%clk 0:01:22.7]} 22... Rb8 {[%clk 0:00:29.9]} 23. Nc5 {[%clk 0:00:59.8]} 23...
Qc7 {[%clk 0:00:27.6]} 24. Ne4 {[%clk 0:00:42.4]} 24... Bd7 {[%clk 0:00:23.9]}
25. Qc5 {[%clk 0:00:40.6]} 25... Be6 {[%clk 0:00:20.4]} 26. b3 {[%clk
0:00:36.7]} 26... Rc8 {[%clk 0:00:13.6]} 27. Nd6 {[%clk 0:00:29.3]} 27... Rd8
{[%clk 0:00:13.3]} 28. Nb5 {[%clk 0:00:28.9]} 28... Qc8 {[%clk 0:00:11.2]} 29.
Rd6 {[%clk 0:00:26]} 29... Rxd6 {[%clk 0:00:07]} 30. Qxd6 {[%clk 0:00:26.2]}
30... g6 {[%clk 0:00:04.6]} 31. Nc7 {[%clk 0:00:20.2]} 31... Bf5 {[%clk
0:00:03.7]} 32. Nd5 {[%clk 0:00:19.1]} 32... Qe6 {[%clk 0:00:01.7]} 33. Qxe6
{[%clk 0:00:14.3]} 33... Bxe6 {[%clk 0:00:02.6]} 34. Nc7 {[%clk 0:00:13.2]}
34... Bf5 {[%clk 0:00:02.2]} 35. Bxc6 {[%clk 0:00:12.2]} 35... bxc6 {[%clk
0:00:02.1]} 36. b4 {[%clk 0:00:12.4]} 36... axb4 {[%clk 0:00:01.7]} 37. cxb4
{[%clk 0:00:12.5]} 37... Bxc2 {[%clk 0:00:02.6]} 38. a5 {[%clk 0:00:12.9]} 38...
Bd3 {[%clk 0:00:02.9]} 39. a6 {[%clk 0:00:13.4]} 39... c5 {[%clk 0:00:01.2]} 40.
a7 {[%clk 0:00:13]} 40... Be4 {[%clk 0:00:01.7]} 41. bxc5 {[%clk 0:00:13.3]}
41... Bc6 {[%clk 0:00:00.7]} 42. a8=Q+ {[%clk 0:00:13.4]} 1-0

[Event "Late-Titled-Tuesday-Blitz-May-14-2024"]
[Site "Chess.com"]
[Date "2024.05.14"]
[Round "3"]
[White "PabloZarnicki"]
[Black "Eloist"]
[Result "1-0"]
[WhiteElo "2558"]
[BlackElo "2424"]
[TimeControl "180+1"]
[EndTime "14:29:32 PDT"]
[Termination "PabloZarnicki won on time"]

1. e4 {[%clk 0:02:51.5]} 1... e6 {[%clk 0:03:00.1]} 2. d4 {[%clk 0:02:51.4]}
2... d5 {[%clk 0:03:00.4]} 3. Nd2 {[%clk 0:02:49.4]} 3... c5 {[%clk 0:02:59.8]}
4. Ngf3 {[%clk 0:02:48.3]} 4... cxd4 {[%clk 0:02:59]} 5. Nxd4 {[%clk 0:02:45.9]}
5... Nc6 {[%clk 0:02:59.1]} 6. Bb5 {[%clk 0:02:45.3]} 6... Bd7 {[%clk
0:02:58.1]} 7. Nxc6 {[%clk 0:02:45.9]} 7... bxc6 {[%clk 0:02:57.7]} 8. Bd3
{[%clk 0:02:46.3]} 8... Bd6 {[%clk 0:02:53.5]} 9. O-O {[%clk 0:02:43.2]} 9...
Qc7 {[%clk 0:02:52.5]} 10. Nf3 {[%clk 0:02:39.3]} 10... Ne7 {[%clk 0:02:47.9]}
11. Re1 {[%clk 0:02:37.7]} 11... Ng6 {[%clk 0:02:44.8]} 12. Qe2 {[%clk
0:02:23.7]} 12... dxe4 {[%clk 0:02:27.7]} 13. Bxe4 {[%clk 0:02:14.7]} 13... O-O
{[%clk 0:02:27.4]} 14. g3 {[%clk 0:02:11.2]} 14... Rab8 {[%clk 0:02:26.1]} 15.
h4 {[%clk 0:02:10]} 15... f5 {[%clk 0:02:14.1]} 16. Bd3 {[%clk 0:02:08.5]} 16...
Ne7 {[%clk 0:01:41.8]} 17. b3 {[%clk 0:02:03.8]} 17... Nd5 {[%clk 0:01:38.4]}
18. Bb2 {[%clk 0:01:55.7]} 18... Rbe8 {[%clk 0:01:19.8]} 19. Ne5 {[%clk
0:01:53.2]} 19... Bc8 {[%clk 0:01:18.6]} 20. a3 {[%clk 0:01:48.7]} 20... a5
{[%clk 0:01:16.7]} 21. c4 {[%clk 0:01:45.6]} 21... Nf6 {[%clk 0:01:14.8]} 22.
Rad1 {[%clk 0:01:37.6]} 22... c5 {[%clk 0:01:14.7]} 23. Bc2 {[%clk 0:01:31]}
23... Bb7 {[%clk 0:01:13.2]} 24. h5 {[%clk 0:01:17.4]} 24... Bxe5 {[%clk
0:01:12.7]} 25. Bxe5 {[%clk 0:01:07]} 25... Qc6 {[%clk 0:01:12.8]} 26. f3 {[%clk
0:01:07.5]} 26... Qxf3 {[%clk 0:01:06.9]} 27. Qxf3 {[%clk 0:01:06.1]} 27... Bxf3
{[%clk 0:01:07.8]} 28. Rd6 {[%clk 0:00:55.5]} 28... Be4 {[%clk 0:00:58.6]} 29.
Bd1 {[%clk 0:00:49.6]} 29... Rd8 {[%clk 0:00:51.9]} 30. h6 {[%clk 0:00:29.2]}
30... Rxd6 {[%clk 0:00:43.9]} 31. Bxd6 {[%clk 0:00:29.3]} 31... Rd8 {[%clk
0:00:42.2]} 32. Bxc5 {[%clk 0:00:28.3]} 32... Rd2 {[%clk 0:00:34.4]} 33. hxg7
{[%clk 0:00:25.5]} 33... Rg2+ {[%clk 0:00:33.5]} 34. Kf1 {[%clk 0:00:25.8]}
34... Rxg3 {[%clk 0:00:20.7]} 35. b4 {[%clk 0:00:26.3]} 35... axb4 {[%clk
0:00:19.9]} 36. axb4 {[%clk 0:00:27.2]} 36... Rxg7 {[%clk 0:00:14.9]} 37. Bd4
{[%clk 0:00:25.6]} 37... Kf7 {[%clk 0:00:13.6]} 38. b5 {[%clk 0:00:24.1]} 38...
Bd3+ {[%clk 0:00:13.4]} 39. Be2 {[%clk 0:00:22.9]} 39... Bxe2+ {[%clk
0:00:12.9]} 40. Rxe2 {[%clk 0:00:23.8]} 40... Rg4 {[%clk 0:00:12.8]} 41. Bxf6
{[%clk 0:00:21.7]} 41... Kxf6 {[%clk 0:00:12.3]} 42. Rc2 {[%clk 0:00:22.6]}
42... Ke7 {[%clk 0:00:08.2]} 43. c5 {[%clk 0:00:22.5]} 43... Kd7 {[%clk
0:00:08.4]} 44. c6+ {[%clk 0:00:23.1]} 1-0

[Event "Late-Titled-Tuesday-Blitz-May-14-2024"]
[Site "Chess.com"]
[Date "2024.05.14"]
[Round "3"]
[White "MarceloPlaya"]
[Black "Romkachess"]
[Result "0-1"]
[WhiteElo "2325"]
[BlackElo "2587"]
[TimeControl "180+1"]
[EndTime "14:29:32 PDT"]
[Termination "Romkachess won on time"]

1. e4 {[%clk 0:03:00.9]} 1... c5 {[%clk 0:02:39.9]} 2. Nf3 {[%clk 0:02:59.9]}
2... d6 {[%clk 0:02:39.3]} 3. d4 {[%clk 0:02:59.5]} 3... cxd4 {[%clk 0:02:38.2]}
4. Nxd4 {[%clk 0:02:54.2]} 4... Nf6 {[%clk 0:02:35.5]} 5. Nc3 {[%clk 0:02:53.4]}
5... a6 {[%clk 0:02:35]} 6. Bg5 {[%clk 0:02:52.4]} 6... e6 {[%clk 0:02:29.3]} 7.
f4 {[%clk 0:02:51.8]} 7... Be7 {[%clk 0:02:27.1]} 8. Qf3 {[%clk 0:02:20.8]} 8...
Qc7 {[%clk 0:02:24.5]} 9. O-O-O {[%clk 0:02:19.8]} 9... Nbd7 {[%clk 0:02:22.4]}
10. g4 {[%clk 0:02:19.2]} 10... h6 {[%clk 0:02:19.1]} 11. Bh4 {[%clk 0:02:17.5]}
11... g5 {[%clk 0:02:11]} 12. fxg5 {[%clk 0:02:11.5]} 12... Ne5 {[%clk
0:02:09.5]} 13. Qe2 {[%clk 0:02:10.5]} 13... Nfxg4 {[%clk 0:02:05.8]} 14. Kb1
{[%clk 0:02:06.9]} 14... hxg5 {[%clk 0:02:03.6]} 15. Bg3 {[%clk 0:02:05.9]}
15... Bd7 {[%clk 0:02:02.5]} 16. Nf3 {[%clk 0:02:00.8]} 16... O-O-O {[%clk
0:01:27.2]} 17. h3 {[%clk 0:01:48.5]} 17... Nxf3 {[%clk 0:00:40.2]} 18. Qxf3
{[%clk 0:01:46.6]} 18... Nf6 {[%clk 0:00:41.1]} 19. Qe3 {[%clk 0:01:30.1]} 19...
Nh5 {[%clk 0:00:35.7]} 20. Bf2 {[%clk 0:01:26.1]} 20... Bc6 {[%clk 0:00:33.8]}
21. Qa7 {[%clk 0:01:14.8]} 21... Qb8 {[%clk 0:00:29.3]} 22. Qb6 {[%clk
0:01:13.8]} 22... Nf6 {[%clk 0:00:20.8]} 23. Bxa6 {[%clk 0:00:43.7]} 23... Qc7
{[%clk 0:00:17.3]} 24. Qxc7+ {[%clk 0:00:40.8]} 24... Kxc7 {[%clk 0:00:17.6]}
25. Bd3 {[%clk 0:00:40.7]} 25... Nd7 {[%clk 0:00:17.1]} 26. b4 {[%clk
0:00:37.8]} 26... Ne5 {[%clk 0:00:17.1]} 27. b5 {[%clk 0:00:28.1]} 27... Bd7
{[%clk 0:00:16.6]} 28. b6+ {[%clk 0:00:25.4]} 28... Kb8 {[%clk 0:00:16.8]} 29.
Be2 {[%clk 0:00:22.3]} 29... Rc8 {[%clk 0:00:16.9]} 30. Kb2 {[%clk 0:00:19]}
30... Bc6 {[%clk 0:00:16.9]} 31. Rd4 {[%clk 0:00:17.8]} 31... Rhd8 {[%clk
0:00:17.4]} 32. a4 {[%clk 0:00:13.7]} 32... Bf6 {[%clk 0:00:17.4]} 33. Rb4
{[%clk 0:00:09.4]} 33... Be8 {[%clk 0:00:16.4]} 34. Bd4 {[%clk 0:00:08.5]} 34...
Bh8 {[%clk 0:00:10.4]} 35. Bb5 {[%clk 0:00:05.1]} 35... Bxb5 {[%clk 0:00:09.6]}
36. axb5 {[%clk 0:00:04.9]} 36... Nc4+ {[%clk 0:00:08.4]} 37. Rxc4 {[%clk
0:00:02.3]} 37... Rxc4 {[%clk 0:00:08.3]} 38. Bxh8 {[%clk 0:00:02.1]} 38... Rxh8
{[%clk 0:00:09.2]} 39. Kb3 {[%clk 0:00:00.2]} 39... Rc5 {[%clk 0:00:09.1]} 0-1

[Event "Late-Titled-Tuesday-Blitz-May-14-2024"]
[Site "Chess.com"]
[Date "2024.05.14"]
[Round "3"]
[White "rhwr"]
[Black "Javadovvv"]
[Result "0-1"]
[WhiteElo "2317"]
[BlackElo "2582"]
[TimeControl "180+1"]
[EndTime "14:29:32 PDT"]
[Termination "Javadovvv won by resignation"]

1. e4 {[%clk 0:03:00.9]} 1... e6 {[%clk 0:03:00]} 2. Nf3 {[%clk 0:02:59.5]} 2...
d5 {[%clk 0:03:00.6]} 3. e5 {[%clk 0:03:00]} 3... c5 {[%clk 0:03:00.8]} 4. b4
{[%clk 0:03:00.6]} 4... cxb4 {[%clk 0:03:01.7]} 5. a3 {[%clk 0:03:00.9]} 5... b3
{[%clk 0:03:01.9]} 6. cxb3 {[%clk 0:02:59.6]} 6... Nc6 {[%clk 0:03:02.3]} 7. d4
{[%clk 0:02:59.1]} 7... Bd7 {[%clk 0:03:02.6]} 8. b4 {[%clk 0:02:59.3]} 8...
Nge7 {[%clk 0:03:03.1]} 9. Bd3 {[%clk 0:02:59.4]} 9... Nf5 {[%clk 0:03:01.4]}
10. Bxf5 {[%clk 0:02:58.8]} 10... exf5 {[%clk 0:03:02.3]} 11. O-O {[%clk
0:02:59.1]} 11... Be7 {[%clk 0:03:02.5]} 12. Nc3 {[%clk 0:02:57.7]} 12... Be6
{[%clk 0:03:02.6]} 13. Bf4 {[%clk 0:02:55.5]} 13... O-O {[%clk 0:03:02.8]} 14.
Qd2 {[%clk 0:02:48]} 14... Rc8 {[%clk 0:03:02.4]} 15. Rac1 {[%clk 0:02:46.6]}
15... Qd7 {[%clk 0:03:00]} 16. h4 {[%clk 0:02:42.9]} 16... Rfd8 {[%clk
0:02:48.1]} 17. g3 {[%clk 0:02:38.8]} 17... Nb8 {[%clk 0:02:45.4]} 18. Kg2
{[%clk 0:02:35.7]} 18... Rc4 {[%clk 0:02:45.6]} 19. Qe3 {[%clk 0:02:31.6]} 19...
Rdc8 {[%clk 0:02:45.5]} 20. Nd2 {[%clk 0:02:30.7]} 20... R4c7 {[%clk 0:02:39]}
21. Nb3 {[%clk 0:02:29.7]} 21... b6 {[%clk 0:02:38]} 22. h5 {[%clk 0:02:19.3]}
22... h6 {[%clk 0:02:36]} 23. Qf3 {[%clk 0:02:14.8]} 23... Rc4 {[%clk
0:02:30.3]} 24. Qe3 {[%clk 0:02:11.2]} 24... Kh7 {[%clk 0:02:25]} 25. Nd2 {[%clk
0:02:10.3]} 25... R4c7 {[%clk 0:02:23.7]} 26. Qd3 {[%clk 0:02:09.7]} 26... Kg8
{[%clk 0:02:22.1]} 27. Nf3 {[%clk 0:02:06.6]} 27... Rc4 {[%clk 0:02:21.3]} 28.
Be3 {[%clk 0:01:57]} 28... a5 {[%clk 0:02:17.7]} 29. Nd2 {[%clk 0:01:54.4]}
29... R4c7 {[%clk 0:02:15.4]} 30. bxa5 {[%clk 0:01:51.5]} 30... bxa5 {[%clk
0:02:16.3]} 31. Ndb1 {[%clk 0:01:47.2]} 31... Rc4 {[%clk 0:02:13.6]} 32. Ne2
{[%clk 0:01:43.7]} 32... Qb5 {[%clk 0:02:01.2]} 33. Qd2 {[%clk 0:01:40.7]} 33...
a4 {[%clk 0:01:51]} 34. Nec3 {[%clk 0:01:38.2]} 34... Qd7 {[%clk 0:01:48]} 35.
Ne2 {[%clk 0:01:35.5]} 35... R8c7 {[%clk 0:01:41.8]} 36. Nf4 {[%clk 0:01:34.5]}
36... Qc8 {[%clk 0:01:38.6]} 37. Rxc4 {[%clk 0:01:32.9]} 37... Rxc4 {[%clk
0:01:37.5]} 38. Qb2 {[%clk 0:01:29.7]} 38... Nc6 {[%clk 0:01:35.6]} 39. Nd2
{[%clk 0:01:22.5]} 39... Na5 {[%clk 0:01:31.8]} 40. Nxc4 {[%clk 0:01:21.6]}
40... Nxc4 {[%clk 0:01:32.7]} 41. Qb5 {[%clk 0:01:14.3]} 41... Bd7 {[%clk
0:01:24.3]} 42. Nxd5 {[%clk 0:01:07]} 42... Qc6 {[%clk 0:00:52.9]} 43. Qxc6
{[%clk 0:00:45.1]} 43... Bxc6 {[%clk 0:00:53.8]} 44. Rb1 {[%clk 0:00:42.8]}
44... Bxd5+ {[%clk 0:00:53.8]} 45. Kf1 {[%clk 0:00:39.8]} 45... Nxa3 {[%clk
0:00:44.8]} 46. Rb8+ {[%clk 0:00:38.7]} 46... Kh7 {[%clk 0:00:44.1]} 47. Re8
{[%clk 0:00:35.4]} 47... Bb4 {[%clk 0:00:40.8]} 48. Rd8 {[%clk 0:00:30]} 48...
Bc4+ {[%clk 0:00:40.7]} 49. Kg2 {[%clk 0:00:28.8]} 49... Nb5 {[%clk 0:00:39.9]}
50. d5 {[%clk 0:00:28]} 50... a3 {[%clk 0:00:40.1]} 51. d6 {[%clk 0:00:25.1]}
51... a2 {[%clk 0:00:38.3]} 52. Ra8 {[%clk 0:00:24.8]} 52... Bd5+ {[%clk
0:00:33.4]} 53. Kh3 {[%clk 0:00:24.6]} 53... Bxa8 {[%clk 0:00:34.3]} 54. d7
{[%clk 0:00:25.1]} 54... Be7 {[%clk 0:00:32.6]} 0-1